fUST/lending_fUST_20260106
["ID","MTS","AMOUNT","RATE_DAILY","PERIOD"]
[400535819,1767702362059,-1000.0,0.00053,120]
[400535820,1767702362087,-1000.0,0.00053,120]
[400535821,1767702362115,-1000.0,0.00053,120]
[400535822,1767702362140,-1224.52430173,0.00053,120]
[400535823,1767702362166,-3070.05210789,0.00053,120]
[400535824,1767702362192,-432.227599,0.00053,120]
[400535825,1767702362217,-420.662088,0.00053,120]
[400535826,1767702362243,-443.901231,0.00053,120]
[400535827,1767702362270,-433.87811,0.00053,120]
[400535828,1767702362297,-3202.44699302,0.00053,120]
[400535829,1767702362324,-434.734593,0.00053,120]
[400535830,1767702362351,-151.0,0.00053,120]
[400535831,1767702362379,-200.0,0.00053,120]
[400535832,1767702362406,-164.0,0.00053,120]
[400535833,1767702362435,-1825.86,0.00053424,120]
[400535834,1767702362462,-600.0,0.000535,120]
[400535835,1767702362490,-151.0,0.000535,120]
[400535836,1767702362518,-2000.0,0.000539,120]
[400535837,1767702362544,-100000.0,0.000539,120]
[400535838,1767702362576,-151.0,0.000539,120]
[400535839,1767702362606,-1000.0,0.00053999,120]
[400535840,1767702362635,-688.67309971,0.00054,120]
[400535841,1767702362664,-300.0,0.00054,120]
[400535842,1767702362692,-1000.0,0.00054,120]
[400535843,1767702362719,-81676.42486412,0.00054,80]
[400535844,1767702362747,-200.0,0.00054,120]
[400535845,1767702362774,-270.81415463,0.000542,120]
[400535846,1767702362801,-19831.35217693,0.00054362,120]
[400535847,1767702362830,-151.0,0.000544,120]
[400535848,1767702362857,-274662.45129784,0.00054444,30]
[400535849,1767702373937,-700.0,0.00048356,60]
[400535850,1767702373966,-700.0,0.00048904,60]
[400535851,1767702374114,-700.0,0.00049452,60]
[400535852,1767702374143,-700.0,0.0005,60]
[400535853,1767702374174,-700.0,0.00050548,60]
[400535854,1767702374201,-178.0,0.00051592,120]
[400535855,1767702374229,-700.0,0.00051644,60]
[400535856,1767702374258,-700.0,0.0005274,60]
[400535857,1767702374284,-213.0,0.00053,120]
[400535858,1767702374312,-700.0,0.00053836,60]
[400535859,1767702374340,-467.5,0.00054444,120]
[400535860,1767702374369,-2145.0,0.00054592,120]
[400535861,1767702374397,-178.0,0.00054592,120]
[400535862,1767702374426,-1825.86,0.00054794,120]
[400535863,1767702374452,-1000.0,0.00054794,120]
[400535864,1767702374479,-430.1153001,0.00054794,120]
[400535867,1767702511755,1142.5435901,0.00027397,120]
[400535870,1767702542228,515.95428866,0.00030136,120]
[400535871,1767702558738,500.0,0.00030136,120]
[400535872,1767702558925,500.0,0.00030136,120]
[400535873,1767702559171,277.63951236,0.00030136,120]
[400535874,1767702572356,459.12,0.00030136,120]
[400535875,1767702572563,169.5241737,0.00030137,120]
[400535876,1767702580778,722.5724,0.00030137,120]
[400535877,1767702593193,174.39494952,0.00030136,120]
[400535878,1767702603189,177.85,0.00030137,120]
[400535881,1767702606209,500.0,0.00030136,120]
[400535882,1767702606356,619.08954512,0.00030136,120]
[400535883,1767702606496,500.0,0.00030136,120]
[400535884,1767702606728,172.91541778,0.00030136,120]
[400535885,1767702609527,522.33837016,0.00030136,120]
[400535886,1767702610915,300.0,0.00011553,120]
[400535888,1767702617407,500.0,0.00030136,120]
[400535889,1767702617732,500.0,0.00030136,120]
[400535890,1767702617993,500.0,0.00030136,120]
[400535891,1767702618240,500.0,0.00030136,120]
[400535892,1767702618468,500.0,0.00030136,120]
[400535893,1767702618694,500.0,0.00030136,120]
[400535894,1767702618957,500.0,0.00030136,120]
[400535895,1767702619188,500.0,0.00030136,120]
[400535896,1767702619802,500.0,0.00030136,120]
[400535897,1767702620052,500.0,0.00030136,120]
[400535898,1767702620366,500.0,0.00030136,120]
[400535899,1767702620597,500.0,0.00030136,120]
[400535900,1767702620828,500.0,0.00030136,120]
[400535901,1767702621073,500.0,0.00030136,120]
[400535902,1767702621312,500.0,0.00030136,120]
[400535903,1767702621544,244.398842,0.00030136,120]
[400535904,1767702626391,633.59924641,0.00030136,120]
[400535905,1767702628065,503.93691078,0.00030136,120]
[400535906,1767702628995,510.24,0.00030136,120]
[400535907,1767702629261,510.24,0.00030136,120]
[400535908,1767702629504,510.24,0.00030136,120]
[400535909,1767702629738,510.24,0.00030136,120]
[400535910,1767702629944,200.70145,0.00029,120]
[400535911,1767702630013,510.24,0.00030136,120]
[400535912,1767702630081,500.0,0.00030136,120]
[400535913,1767702630269,522.11689198,0.00030136,120]
[400535914,1767702630343,510.24,0.00030136,120]
[400535915,1767702630414,500.0,0.00030136,120]
[400535916,1767702630485,500.0,0.00030136,120]
[400535917,1767702630562,510.24,0.00030136,120]
[400535918,1767702630637,500.0,0.00030136,120]
[400535919,1767702630789,510.24,0.00030136,120]
[400535920,1767702630924,247.32295225,0.00030136,120]
[400535921,1767702631032,510.24,0.00030136,120]
[400535922,1767702631315,510.24,0.00030136,120]
[400535924,1767702631595,510.24,0.00030136,120]
[400535956,1767702631998,507.00489186,0.00030136,120]
[400535971,1767702632170,510.24,0.00030136,120]
[400535975,1767702632261,510.24,0.00030136,120]
[400535976,1767702632277,-553.0,9.53e-05,2]
[400535977,1767702632286,-227.4461025,9.754e-05,2]
[400535978,1767702632295,-267.0,9.978e-05,2]
[400535979,1767702632305,-300.0,9.978e-05,2]
[400535980,1767702632314,-300.0,9.978e-05,2]
[400535981,1767702632323,-1200.0,9.978e-05,2]
[400535982,1767702632332,-300.0,9.978e-05,2]
[400535983,1767702632341,-207.38642038,9.979e-05,2]
[400535984,1767702632350,-500.0,9.979e-05,2]
[400535985,1767702632359,-500.0,9.979e-05,2]
[400535986,1767702632368,-500.0,9.979e-05,2]
[400535987,1767702632377,-500.0,9.979e-05,2]
[400535988,1767702632386,-500.82274639,9.979e-05,2]
[400535989,1767702632395,-500.0,9.979e-05,2]
[400535990,1767702632404,-500.0,9.979e-05,2]
[400535991,1767702632413,-154.28838336,9.979e-05,2]
[400535992,1767702632485,510.24,0.00030136,120]
[400535993,1767702632614,510.24,0.00030136,120]
[400535994,1767702632932,510.24,0.00030136,120]
[400535995,1767702633074,510.24,0.00030136,120]
[400535996,1767702633543,510.24,0.00030136,120]
[400535997,1767702633781,510.24,0.00030136,120]
[400535998,1767702633880,510.24,0.00030136,120]
[400535999,1767702634066,510.24,0.00030136,120]
[400536000,1767702634282,510.24,0.00030136,120]
[400536001,1767702634516,510.24,0.00030136,120]
[400536002,1767702634733,510.36384901,0.00030136,120]
[400536003,1767702635224,200.0,0.00027,120]
[400536004,1767702635618,209.90859,0.000285,120]
[400536025,1767702638118,-425.82534972,9.978e-05,2]
[400536026,1767702638127,-500.0,9.978e-05,2]
[400536027,1767702638136,-500.0,9.978e-05,2]
[400536028,1767702638146,-500.0,9.978e-05,2]
[400536029,1767702638156,-119.14546574,9.978e-05,2]
[400536030,1767702638229,-380.85453426,9.978e-05,2]
[400536031,1767702638239,-500.0,9.978e-05,2]
[400536032,1767702638248,-500.0,9.978e-05,2]
[400536033,1767702638258,-500.0,9.978e-05,2]
[400536034,1767702638267,-500.0,9.978e-05,2]
[400536035,1767702638276,-500.0,9.978e-05,2]
[400536036,1767702638286,-500.0,9.978e-05,2]
[400536037,1767702638296,-500.0,9.978e-05,2]
[400536038,1767702638305,-500.0,9.978e-05,2]
[400536039,1767702638315,-500.0,9.978e-05,2]
[400536040,1767702638324,-240.7682144,9.978e-05,2]
[400536041,1767702638336,-259.2317856,9.978e-05,2]
[400536042,1767702638345,-500.0,9.978e-05,2]
[400536043,1767702638354,-500.0,9.978e-05,2]
[400536044,1767702638363,-500.0,9.978e-05,2]
[400536045,1767702638373,-638.81929023,9.978e-05,2]
[400536046,1767702638382,-46.88559526,9.978e-05,2]
[400536047,1767702638981,516.57988522,0.00030136,120]
[400536060,1767702640663,500.0,0.00030136,120]
[400536061,1767702640915,546.70616326,0.00030136,120]
[400536062,1767702641124,520.96717976,0.00030136,120]
[400536063,1767702641741,500.0,0.00030136,120]
[400536064,1767702642022,417.93097266,0.00030136,120]
[400536065,1767702642464,504.07759822,0.00030136,120]
[400536069,1767702643508,512.78354794,0.00030136,120]
[400536070,1767702643601,500.0,0.00030136,120]
[400536071,1767702643860,500.0,0.00030136,120]
[400536072,1767702644117,248.06470794,0.00030136,120]
[400536077,1767702644674,-453.11440474,9.978e-05,2]
[400536078,1767702644685,-446.10559526,9.978e-05,2]
[400536079,1767702644738,-53.89440474,9.978e-05,2]
[400536080,1767702644748,-249.76786619,9.978e-05,2]
[400536081,1767702644758,-500.0,9.978e-05,2]
[400536082,1767702644767,-500.0,9.978e-05,2]
[400536083,1767702644777,-637.65980875,9.978e-05,2]
[400536084,1767702644789,-500.0,9.978e-05,2]
[400536085,1767702644798,-500.0,9.978e-05,2]
[400536086,1767702644807,-500.0,9.978e-05,2]
[400536087,1767702644817,-500.0,9.978e-05,2]
[400536088,1767702644826,-500.0,9.978e-05,2]
[400536089,1767702644835,-500.0,9.978e-05,2]
[400536090,1767702644845,-500.0,9.978e-05,2]
[400536092,1767702644854,-500.0,9.978e-05,2]
[400536094,1767702644863,-500.0,9.978e-05,2]
[400536095,1767702644872,-268.00167302,9.978e-05,2]
[400536097,1767702644881,-229.07637319,9.978e-05,2]
[400536099,1767702644890,-500.0,9.978e-05,2]
[400536100,1767702644901,-500.0,9.978e-05,2]
[400536101,1767702644910,-500.0,9.978e-05,2]
[400536102,1767702644920,-500.0,9.978e-05,2]
[400536103,1767702644930,-500.0,9.978e-05,2]
[400536104,1767702644939,-500.0,9.978e-05,2]
[400536105,1767702644949,-500.0,9.978e-05,2]
[400536106,1767702644960,-500.0,9.978e-05,2]
[400536107,1767702644970,-591.33834235,9.978e-05,2]
[400536108,1767702644981,-468.90357087,9.978e-05,2]
[400536109,1767702644991,-591.33834235,9.978e-05,2]
[400536110,1767702645001,-591.33834235,9.978e-05,2]
[400536111,1767702645011,-591.33834235,9.978e-05,2]
[400536112,1767702645023,-591.33834235,9.978e-05,2]
[400536113,1767702645032,-591.33834235,9.978e-05,2]
[400536114,1767702645041,-591.33834235,9.978e-05,2]
[400536115,1767702645050,-591.33834235,9.978e-05,2]
[400536116,1767702645060,-591.33834235,9.978e-05,2]
[400536117,1767702645069,-591.33834235,9.978e-05,2]
[400536118,1767702645078,-591.33834235,9.978e-05,2]
[400536119,1767702645088,-591.33834235,9.978e-05,2]
[400536120,1767702645097,-591.33834235,9.978e-05,2]
[400536121,1767702645107,-591.33834235,9.978e-05,2]
[400536122,1767702645116,-591.33834235,9.978e-05,2]
[400536123,1767702645129,-8700.27057048,9.979e-05,2]
[400536243,1767702646411,-1961.3988702,9.979e-05,2]
[400536250,1767702646470,-3319.90557442,9.979e-05,2]
[400536307,1767702647177,-4164.41478538,9.979e-05,2]
[400536309,1767702647188,-21072.3654202,9.979e-05,2]
[400536311,1767702647199,-560.0,9.979e-05,2]
[400536378,1767702647818,500.0,0.00030136,120]
[400536406,1767702648068,512.40602393,0.00030136,120]
[400536545,1767702649398,500.0,0.00030136,120]
[400536561,1767702649666,464.33383212,0.00030136,120]
[400536644,1767702650461,500.0,0.00030136,120]
[400536707,1767702651200,500.0,0.00030136,120]
[400536737,1767702651479,594.05730344,0.00030136,120]
[400536918,1767702653295,500.0,0.00030136,120]
[400536943,1767702653529,500.0,0.00030136,120]
[400536979,1767702653879,151.73695932,0.00030136,120]
[400536994,1767702654019,500.0,0.00030136,120]
[400537020,1767702654256,500.0,0.00030136,120]
[400537027,1767702654330,437.43934382,0.00030136,120]
[400537028,1767702654495,167.61454778,0.00030136,120]
[400537029,1767702664371,500.0,0.00030136,120]
[400537030,1767702664614,559.83147208,0.00030136,120]
[400537033,1767702670128,500.0,0.00030136,120]
[400537034,1767702670417,587.0241863,0.00030136,120]
[400537035,1767702671264,500.0,0.00030136,120]
[400537036,1767702671512,500.0,0.00030136,120]
[400537037,1767702671754,552.41162727,0.00030136,120]
[400537038,1767702673035,500.0,0.00030136,120]
[400537039,1767702673282,548.81141758,0.00030136,120]
[400537040,1767702674954,500.0,0.00030136,120]
[400537041,1767702675028,500.0,0.00030136,120]
[400537042,1767702675178,537.47283122,0.00030136,120]
[400537043,1767702675268,508.44422539,0.00030136,120]
[400537044,1767702675943,439.67131896,0.00030136,120]
[400537045,1767702677431,500.0,0.00030136,120]
[400537046,1767702677667,500.0,0.00030136,120]
[400537047,1767702677882,500.0,0.00030136,120]
[400537048,1767702677953,153.49191859,0.00030136,120]
[400537049,1767702680104,500.0,0.00030136,120]
[400537050,1767702680335,517.88678463,0.00030136,120]
[400537051,1767702680798,500.0,0.00030136,120]
[400537052,1767702681038,516.29031469,0.00030136,120]
[400537053,1767702681485,500.0,0.00030136,120]
[400537054,1767702681715,500.0,0.00030136,120]
[400537055,1767702682075,525.18734288,0.00030136,120]
[400537056,1767702683859,500.0,0.00030136,120]
[400537057,1767702684101,517.9732487,0.00030136,120]
[400537058,1767702686185,500.0,0.00030136,120]
[400537059,1767702686437,586.98447157,0.00030136,120]
[400537060,1767702688275,507.55536736,0.00030136,120]
[400537061,1767702692545,584.58628255,0.00030136,120]
[400537062,1767702695621,500.0,0.00030136,120]
[400537063,1767702695866,509.54036554,0.00030136,120]
[400537064,1767702706120,500.0,0.00030136,120]
[400537065,1767702706366,531.2973256,0.00030136,120]
[400537066,1767702707327,500.0,0.00030136,120]
[400537067,1767702707571,500.0,0.00030136,120]
[400537068,1767702707807,500.0,0.00030136,120]
[400537069,1767702708076,500.0,0.00030136,120]
[400537070,1767702708325,500.0,0.00030136,120]
[400537071,1767702708404,500.0,0.00030136,120]
[400537072,1767702708579,201.92350026,0.00030136,120]
[400537073,1767702708662,558.20025393,0.00030136,120]
[400537074,1767702710416,500.0,0.00030136,120]
[400537075,1767702710680,517.71923763,0.00030136,120]
[400537076,1767702714278,500.0,0.00030136,120]
[400537077,1767702714530,500.0,0.00030136,120]
[400537078,1767702714850,527.97476338,0.00030136,120]
[400537079,1767702715079,230.8013674,0.00030136,120]
[400537080,1767702715568,500.0,0.00030136,120]
[400537081,1767702715798,560.89506818,0.00030136,120]
[400537082,1767702716346,508.44106324,0.00030136,120]
[400537083,1767702718575,537.03346841,0.00030136,120]
[400537084,1767702721362,500.0,0.00030136,120]
[400537085,1767702721506,205.47285685,0.00030136,120]
[400537086,1767702723376,500.0,0.00030136,120]
[400537087,1767702723659,528.88473297,0.00030136,120]
[400537088,1767702723733,500.0,0.00030136,120]
[400537089,1767702723971,528.85683447,0.00030136,120]
[400537090,1767702727027,506.15874012,0.00030136,120]
[400537091,1767702727090,500.0,0.00030136,120]
[400537092,1767702727322,521.42263988,0.00030136,120]
[400537093,1767702727611,509.28419355,0.00030136,120]
[400537094,1767702727678,500.0,0.00030136,120]
[400537095,1767702728193,500.0,0.00030136,120]
[400537096,1767702728309,500.0,0.00030136,120]
[400537097,1767702728454,500.0,0.00030136,120]
[400537098,1767702728543,542.18274219,0.00030136,120]
[400537099,1767702728693,500.0,0.00030136,120]
[400537100,1767702728958,500.0,0.00030136,120]
[400537101,1767702729199,500.0,0.00030136,120]
[400537102,1767702729484,332.30546012,0.00030136,120]
[400537103,1767702730900,500.0,0.00030136,120]
[400537104,1767702731144,518.41449882,0.00030136,120]
[400537105,1767702733038,500.0,0.00030136,120]
[400537106,1767702733114,500.0,0.00030136,120]
[400537107,1767702733283,500.0,0.00030136,120]
[400537108,1767702733357,500.0,0.00030136,120]
[400537109,1767702733523,500.0,0.00030136,120]
[400537110,1767702733597,500.0,0.00030136,120]
[400537111,1767702733768,294.16465122,0.00030136,120]
[400537112,1767702733855,284.5325329,0.00030136,120]
[400537113,1767702733925,500.0,0.00030136,120]
[400537114,1767702734289,534.9844283,0.00030136,120]
[400537115,1767702734547,290.39393235,0.00030136,120]
[400537116,1767702735059,353.15463463,0.00030136,120]
[400537117,1767702735937,500.0,0.00030136,120]
[400537118,1767702736220,500.0,0.00030136,120]
[400537119,1767702736445,517.87707059,0.00030136,120]
[400537120,1767702739535,211.44479784,0.00030136,120]
[400537121,1767702741886,500.0,0.00030136,120]
[400537122,1767702742132,500.0,0.00030136,120]
[400537123,1767702742378,607.12879006,0.00030136,120]
[400537124,1767702746881,500.0,0.00030136,120]
[400537125,1767702747137,500.0,0.00030136,120]
[400537126,1767702747364,500.0,0.00030136,120]
[400537127,1767702747432,500.0,0.00030136,120]
[400537128,1767702747609,533.7495623,0.00030136,120]
[400537129,1767702747680,500.0,0.00030136,120]
[400537130,1767702747893,500.0,0.00030136,120]
[400537131,1767702748139,586.60309211,0.00030136,120]
[400537132,1767702748375,500.0,0.00030136,120]
[400537133,1767702748634,500.0,0.00030136,120]
[400537134,1767702748861,500.0,0.00030136,120]
[400537135,1767702749115,500.0,0.00030136,120]
[400537136,1767702749359,500.0,0.00030136,120]
[400537137,1767702749754,500.0,0.00030136,120]
[400537138,1767702749991,285.00018225,0.00030136,120]
[400537139,1767702750621,500.0,0.00030136,120]
[400537140,1767702750797,502.83554335,0.00030136,120]
[400537141,1767702750878,550.81654779,0.00030136,120]
[400537142,1767702751773,500.0,0.00030136,120]
[400537143,1767702752013,527.68740833,0.00030136,120]
[400537144,1767702752176,500.0,0.00030136,120]
[400537145,1767702752493,500.0,0.00030136,120]
[400537146,1767702752810,500.0,0.00030136,120]
[400537147,1767702752937,500.0,0.00030136,120]
[400537148,1767702753010,644.07766998,0.00030136,120]
[400537149,1767702753081,500.0,0.00030136,120]
[400537150,1767702753262,500.0,0.00030136,120]
[400537151,1767702753389,500.0,0.00030136,120]
[400537152,1767702753798,500.0,0.00030136,120]
[400537153,1767702754184,500.0,0.00030136,120]
[400537154,1767702754265,500.0,0.00030136,120]
[400537155,1767702754477,500.0,0.00030136,120]
[400537156,1767702754588,500.0,0.00030136,120]
[400537157,1767702754663,241.39963417,0.00030136,120]
[400537158,1767702754733,500.0,0.00030136,120]
[400537159,1767702754885,500.0,0.00030136,120]
[400537160,1767702755158,500.0,0.00030136,120]
[400537161,1767702755393,500.0,0.00030136,120]
[400537162,1767702755802,500.0,0.00030136,120]
[400537163,1767702755951,500.0,0.00030136,120]
[400537164,1767702756108,500.0,0.00030136,120]
[400537165,1767702756248,500.0,0.00030136,120]
[400537166,1767702756349,454.10715954,0.00030136,120]
[400537167,1767702756480,313.44159574,0.00030136,120]
[400537168,1767702757450,500.0,0.00030136,120]
[400537169,1767702758254,500.0,0.00030136,120]
[400537170,1767702758368,502.7366453,0.00030136,120]
[400537171,1767702758480,500.0,0.00030136,120]
[400537172,1767702758746,624.87973309,0.00030136,120]
[400537173,1767702759747,500.0,0.00030136,120]
[400537174,1767702759829,500.0,0.00030136,120]
[400537175,1767702759992,578.3867319,0.00030136,120]
[400537176,1767702760068,527.74079905,0.00030136,120]
[400537177,1767702760477,474.55253296,0.00030136,120]
[400537178,1767702762005,500.0,0.00030136,120]
[400537179,1767702762155,528.05501705,0.00030136,120]
[400537180,1767702763141,500.0,0.00030136,120]
[400537181,1767702763384,500.0,0.00030136,120]
[400537182,1767702763594,500.0,0.00030136,120]
[400537183,1767702763658,500.0,0.00030136,120]
[400537184,1767702763824,500.0,0.00030136,120]
[400537185,1767702763887,500.0,0.00030136,120]
[400537186,1767702763957,500.0,0.00030136,120]
[400537187,1767702764048,500.0,0.00030136,120]
[400537188,1767702764115,1318.49,0.00030136,120]
[400537189,1767702764175,500.0,0.00030136,120]
[400537190,1767702764239,505.30711741,0.00030136,120]
[400537191,1767702764303,500.0,0.00030136,120]
[400537192,1767702764381,1318.49,0.00030136,120]
[400537193,1767702764580,177.01797017,0.00030136,120]
[400537194,1767702764642,500.0,0.00030136,120]
[400537195,1767702764706,472.45802034,0.00030136,120]
[400537196,1767702764773,1318.49,0.00030136,120]
[400537197,1767702764832,500.0,0.00030136,120]
[400537198,1767702764898,500.0,0.00030136,120]
[400537199,1767702764972,1318.49,0.00030136,120]
[400537200,1767702765192,1318.49,0.00030136,120]
[400537201,1767702765436,1318.49,0.00030136,120]
[400537202,1767702765683,1318.49,0.00030136,120]
[400537203,1767702765918,1318.49,0.00030136,120]
[400537204,1767702766130,407.10005582,0.00030136,120]
[400537205,1767702766198,1318.49,0.00030136,120]
[400537206,1767702766392,1318.49,0.00030136,120]
[400537207,1767702766611,1318.49,0.00030136,120]
[400537208,1767702766848,1318.49,0.00030136,120]
[400537209,1767702767076,1318.49,0.00030136,120]
[400537210,1767702767305,1318.49,0.00030136,120]
[400537211,1767702767540,1318.49,0.00030136,120]
[400537212,1767702767829,1318.49,0.00030136,120]
[400537213,1767702768063,500.0,0.00030136,120]
[400537214,1767702768293,547.43389952,0.00030136,120]
[400537215,1767702768356,1318.49,0.00030136,120]
[400537216,1767702768574,1318.49,0.00030136,120]
[400537217,1767702768815,1318.49,0.00030136,120]
[400537218,1767702769050,1318.49,0.00030136,120]
[400537219,1767702769152,500.0,0.00030136,120]
[400537220,1767702769283,1318.49,0.00030136,120]
[400537221,1767702769412,500.0,0.00030136,120]
[400537222,1767702769522,1318.49,0.00030136,120]
[400537223,1767702769691,459.92917497,0.00030136,120]
[400537224,1767702769752,1318.49,0.00030136,120]
[400537225,1767702770006,1318.59247287,0.00030136,120]
[400537226,1767702770258,500.0,0.00030136,120]
[400537227,1767702770492,603.6621228,0.00030136,120]
[400537228,1767702771372,500.0,0.00030136,120]
[400537229,1767702771601,500.0,0.00030136,120]
[400537230,1767702771843,500.0,0.00030136,120]
[400537231,1767702771929,500.0,0.00030136,120]
[400537232,1767702772135,410.59261467,0.00030136,120]
[400537233,1767702772200,516.47619792,0.00030136,120]
[400537234,1767702772379,500.0,0.00030136,120]
[400537235,1767702772612,575.72412188,0.00030136,120]
[400537236,1767702773321,500.0,0.00030136,120]
[400537237,1767702773558,500.0,0.00030136,120]
[400537238,1767702773826,500.0,0.00030136,120]
[400537239,1767702773911,500.0,0.00030136,120]
[400537240,1767702774091,500.0,0.00030136,120]
[400537241,1767702774172,500.0,0.00030136,120]
[400537242,1767702774420,500.0,0.00030136,120]
[400537243,1767702774602,500.0,0.00030136,120]
[400537244,1767702775005,500.0,0.00030136,120]
[400537245,1767702775070,346.01403827,0.00030136,120]
[400537246,1767702775149,500.0,0.00030136,120]
[400537247,1767702775373,500.0,0.00030136,120]
[400537248,1767702775626,500.0,0.00030136,120]
[400537250,1767702775876,500.0,0.00030136,120]
[400537251,1767702776242,500.0,0.00030136,120]
[400537252,1767702776307,500.0,0.00030136,120]
[400537253,1767702776500,500.0,0.00030136,120]
[400537254,1767702776568,500.0,0.00030136,120]
[400537255,1767702776773,500.0,0.00030136,120]
[400537256,1767702776854,500.0,0.00030136,120]
[400537257,1767702777023,570.187827,0.00030136,120]
[400537258,1767702777110,500.0,0.00030136,120]
[400537259,1767702777248,500.0,0.00030136,120]
[400537260,1767702777350,500.0,0.00030136,120]
[400537262,1767702777647,500.0,0.00030136,120]
[400537263,1767702777706,500.0,0.00030136,120]
[400537265,1767702777887,542.32837216,0.00030136,120]
[400537266,1767702777952,500.0,0.00030136,120]
[400537268,1767702778140,500.0,0.00030136,120]
[400537269,1767702778319,510.99251975,0.00030136,120]
[400537271,1767702778383,500.0,0.00030136,120]
[400537273,1767702778651,500.0,0.00030136,120]
[400537276,1767702779248,500.0,0.00030136,120]
[400537278,1767702779494,240.37793627,0.00030136,120]
[400537281,1767702780360,500.0,0.00030136,120]
[400537283,1767702780423,500.0,0.00030136,120]
[400537284,1767702780484,500.0,0.00030136,120]
[400537285,1767702780597,246.77085181,0.00030136,120]
[400537287,1767702780661,500.0,0.00030136,120]
[400537288,1767702780722,500.0,0.00030136,120]
[400537289,1767702780829,500.0,0.00030136,120]
[400537291,1767702780879,500.0,0.00030136,120]
[400537292,1767702781065,529.80143634,0.00030136,120]
[400537294,1767702781134,500.0,0.00030136,120]
[400537295,1767702781345,500.0,0.00030136,120]
[400537296,1767702781590,623.16368159,0.00030136,120]
[400537298,1767702781653,500.0,0.00030136,120]
[400537299,1767702781901,500.0,0.00030136,120]
[400537300,1767702782231,500.0,0.00030136,120]
[400537301,1767702782346,500.0,0.00030136,120]
[400537302,1767702782412,500.0,0.00030136,120]
[400537303,1767702782479,500.0,0.00030136,120]
[400537304,1767702782584,453.72522812,0.00030136,120]
[400537305,1767702782653,500.0,0.00030136,120]
[400537306,1767702782719,500.0,0.00030136,120]
[400537307,1767702782873,500.0,0.00030136,120]
[400537308,1767702782937,500.0,0.00030136,120]
[400537309,1767702783000,500.0,0.00030136,120]
[400537310,1767702783123,503.00513969,0.00030136,120]
[400537311,1767702783187,500.0,0.00030136,120]
[400537312,1767702783249,500.0,0.00030136,120]
[400537313,1767702783406,500.0,0.00030136,120]
[400537314,1767702783478,602.29741578,0.00030136,120]
[400537315,1767702783636,500.0,0.00030136,120]
[400537316,1767702784196,500.0,0.00030136,120]
[400537317,1767702784429,312.12917879,0.00030136,120]
[400537318,1767702786409,500.0,0.00030136,120]
[400537319,1767702786643,500.0,0.00030136,120]
[400537320,1767702786907,500.0,0.00030136,120]
[400537321,1767702786973,500.0,0.00030136,120]